bitfinex/quotes_BTCUSD_20250422
["timestamp","ask_amount","ask_price","bid_price","bid_amount"]
[1745362525503,0.00269602,92739.0,92728.0,0.001]
[1745362525996,0.00269602,92739.0,92729.0,0.27518096]
[1745362526571,0.00269602,92739.0,92720.0,0.44774283]
[1745362526797,0.00269602,92739.0,92720.0,0.40129819]
[1745362527165,0.00269602,92739.0,92721.0,0.170796]
[1745362527365,0.00269602,92739.0,92721.0,0.159103]
[1745362527563,0.00269602,92739.0,92720.0,0.40129819]
[1745362527821,0.00269602,92739.0,92729.0,0.27518096]
[1745362528069,0.00269602,92739.0,92728.0,0.001]
[1745362528428,0.00269602,92739.0,92722.0,0.17255826]
[1745362528831,0.0486,92740.0,92724.0,0.17255498]
[1745362529193,0.0486,92740.0,92733.0,0.17253726]
[1745362529602,0.0486,92740.0,92735.0,0.17253387]
[1745362530081,0.0486,92740.0,92733.0,0.17253726]
[1745362530195,0.0496,92740.0,92733.0,0.17253726]
[1745362530644,0.0486,92740.0,92733.0,0.17253726]
[1745362530914,0.0496,92740.0,92733.0,0.17253726]
[1745362531149,0.0496,92740.0,92734.0,0.1725347]
[1745362531546,0.0506,92740.0,92734.0,0.1725347]
[1745362531692,0.0496,92740.0,92734.0,0.1725347]
[1745362532100,0.0506,92740.0,92734.0,0.1725347]
[1745362532508,0.0496,92740.0,92736.0,0.1725325]
[1745362532679,0.0486,92740.0,92736.0,0.1725325]
[1745362532887,0.0496,92740.0,92736.0,0.1725325]
[1745362533193,0.0486,92740.0,92736.0,0.1725325]
[1745362533598,0.0496,92740.0,92736.0,0.1725325]
[1745362534131,0.0506,92740.0,92736.0,0.1725325]
[1745362534342,0.0496,92740.0,92736.0,0.1725325]
[1745362534805,0.0506,92740.0,92736.0,0.1725325]
[1745362535448,0.0506,92740.0,92735.0,0.17253416]
[1745362536375,0.0496,92740.0,92735.0,0.17253416]
[1745362536703,0.0506,92740.0,92730.0,0.27518096]
[1745362536926,0.0496,92740.0,92730.0,0.44772329]
[1745362537146,0.0506,92740.0,92732.0,0.17253986]
[1745362537408,0.0506,92740.0,92734.0,0.17253601]
[1745362537615,0.0496,92740.0,92734.0,0.17253601]
[1745362538572,0.0506,92740.0,92733.0,0.17253653]
[1745362538778,0.0496,92740.0,92733.0,0.17253653]
[1745362539186,0.0496,92740.0,92735.0,0.17253359]
[1745362539687,0.0496,92740.0,92738.0,0.17252886]
[1745362539888,0.0486,92740.0,92736.0,0.17253278]
[1745362540114,0.0486,92740.0,92737.0,0.17252931]
[1745362540309,0.001,92740.0,92739.0,0.17252719]
[1745362540526,9.503e-05,92742.0,92741.0,0.17252347]
[1745362540890,0.0002,92749.0,92745.0,0.17251603]
[1745362541088,4.636e-05,92746.0,92745.0,3.23663493]
[1745362541330,4.636e-05,92749.0,92748.0,0.1870513]
[1745362541539,4.636e-05,92749.0,92748.0,0.29535435]
[1745362541766,4.636e-05,92749.0,92748.0,2.80843535]
[1745362541976,0.0451,92792.0,92748.0,2.80843535]
[1745362541977,0.0004248,92779.0,92773.0,0.01077899]
[1745362542129,0.0004248,92779.0,92778.0,0.17245467]
[1745362542332,0.00047118,92779.0,92778.0,0.17245467]
[1745362543163,0.00147118,92779.0,92774.0,0.12256]
[1745362543375,0.0451,92778.0,92775.0,0.17246025]
[1745362543785,0.05149445,92777.0,92775.0,0.02161847]
[1745362543985,0.0488,92777.0,92768.0,0.17247323]
[1745362544184,0.0488,92777.0,92764.0,0.17247939]
[1745362544496,0.0488,92777.0,92766.0,0.17247591]
[1745362545169,0.00269473,92776.0,92754.0,0.17249814]
[1745362545307,0.00269473,92776.0,92765.0,0.12252]
[1745362545743,0.00269473,92776.0,92766.0,0.001]
[1745362545915,0.00269473,92776.0,92766.0,0.002]
[1745362546120,0.0451,92775.0,92766.0,0.002]
[1745362546368,0.0488,92772.0,92766.0,0.001]
[1745362546708,0.0488,92769.0,92766.0,0.001]
[1745362546909,0.0451,92767.0,92764.0,0.02134672]
[1745362547119,0.0451,92765.0,92764.0,0.02134672]
[1745362547266,0.0451,92765.0,92754.0,0.12252]
[1745362547465,0.00269523,92764.0,92754.0,0.12252]
[1745362548175,0.0451,92763.0,92754.0,0.14433551]
[1745362548425,0.00269526,92762.0,92754.0,0.14433551]
[1745362549463,0.0451,92760.0,92754.0,0.14433551]
[1745362549605,0.00269535,92759.0,92754.0,0.14433551]
[1745362550080,0.0451,92760.0,92757.0,0.01078085]
[1745362550294,0.0451,92760.0,92754.0,0.02181551]
[1745362550502,0.0451,92760.0,92753.0,0.1724993]
[1745362550892,0.0451,92760.0,92750.0,0.17250569]
[1745362551266,0.0461,92760.0,92751.0,0.128144]
[1745362551665,0.0451,92760.0,92751.0,0.128144]
[1745362551868,0.0451,92760.0,92750.0,0.17250569]
[1745362552073,0.001,92759.0,92751.0,0.02149428]
[1745362552284,0.0451,92760.0,92750.0,0.17250569]
[1745362552774,0.0451,92760.0,92751.0,0.001]
[1745362552988,0.0451,92760.0,92750.0,0.17250569]
[1745362553196,0.0451,92760.0,92751.0,0.001]
[1745362553399,0.0451,92760.0,92750.0,0.17250569]
[1745362553609,0.0451,92760.0,92751.0,0.001]
[1745362553940,0.0451,92760.0,92751.0,0.02261737]
[1745362554257,0.0451,92760.0,92751.0,0.02161737]
[1745362554463,0.0451,92760.0,92752.0,0.17250301]
[1745362555575,0.0451,92760.0,92751.0,0.001]
[1745362555576,0.0451,92760.0,92751.0,0.02217317]
[1745362555800,0.0451,92760.0,92751.0,0.002]
[1745362556127,0.0451,92760.0,92751.0,0.001]
[1745362556376,0.0451,92760.0,92752.0,0.001]
[1745362556584,0.0451,92760.0,92749.0,0.4476877]
[1745362556910,0.0451,92760.0,92750.0,0.235325]
[1745362557085,0.0451,92760.0,92751.0,0.001]
[1745362557388,0.0451,92760.0,92749.0,0.27518096]
[1745362557786,0.0451,92760.0,92749.0,0.29886518]
[1745362557960,0.00269539,92759.0,92749.0,0.29886518]
[1745362558233,0.00269539,92759.0,92749.0,0.02368422]
[1745362558971,0.00269539,92759.0,92749.0,0.02268422]
[1745362559411,0.0477954,92760.0,92751.0,0.001]
[1745362559655,0.0451,92760.0,92751.0,0.001]
[1745362559797,0.0451,92760.0,92754.0,0.17249784]
[1745362560343,0.0451,92760.0,92749.0,0.29686518]
[1745362560494,0.0461,92760.0,92749.0,0.29686518]
[1745362561016,0.0451,92760.0,92749.0,0.29686518]
[1745362561175,0.0461,92760.0,92750.0,0.17250673]
[1745362562437,0.0451,92760.0,92750.0,0.17250673]
[1745362562838,0.0451,92760.0,92750.0,0.17350673]
[1745362563809,0.0451,92760.0,92750.0,0.001]
[1745362565857,0.0451,92760.0,92750.0,0.17350611]
[1745362566064,0.0451,92760.0,92750.0,0.001]
[1745362567506,0.00269516,92759.0,92750.0,0.001]
[1745362568682,0.00269516,92759.0,92749.0,0.29686518]
[1745362568849,0.00269516,92759.0,92750.0,0.001]
[1745362570367,0.0451,92760.0,92753.0,0.17250059]
[1745362570590,0.0451,92760.0,92755.0,0.17249694]
[1745362570810,0.0451,92760.0,92752.0,0.17250124]
[1745362571541,0.0451,92760.0,92755.0,0.17249715]
[1745362571749,0.0461,92760.0,92755.0,0.17249715]
[1745362571953,0.0461,92760.0,92754.0,0.17249921]
[1745362572154,0.0451,92760.0,92754.0,0.17249921]
[1745362572775,0.0451,92760.0,92749.0,0.29686518]
[1745362573383,0.0461,92760.0,92749.0,0.29686518]
[1745362574600,0.0451,92760.0,92749.0,0.29686518]
[1745362574737,0.0451,92760.0,92749.0,0.29786518]
[1745362574939,0.0451,92760.0,92749.0,0.29886518]
[1745362575352,0.00269516,92759.0,92749.0,0.29886518]
[1745362575547,0.0494,92757.0,92749.0,0.02368422]
[1745362575767,0.0466,92754.0,92749.0,0.02368422]
[1745362575977,0.0466,92751.0,92749.0,0.02368422]
[1745362576146,0.11099879,92750.0,92749.0,0.02168422]
[1745362576347,0.11099879,92750.0,92740.0,0.27518096]
[1745362576550,0.11099879,92750.0,92749.0,0.002]
[1745362577616,0.11099879,92750.0,92740.0,0.29718957]
[1745362577850,0.0466,92749.0,92740.0,0.02200861]
[1745362578000,0.00269579,92748.0,92740.0,0.02200861]
[1745362578203,0.00269579,92748.0,92730.0,0.27518096]
[1745362578600,0.00269579,92748.0,92738.0,0.52137462]
[1745362579235,0.00369579,92748.0,92738.0,0.52137462]
[1745362579648,0.00369579,92748.0,92738.0,0.79655558]
[1745362579649,0.003,92748.0,92738.0,0.79655558]
[1745362579946,0.00569574,92748.0,92738.0,0.79655558]
[1745362580568,0.00469574,92748.0,92738.0,0.79655558]
[1745362580993,0.00569574,92748.0,92738.0,0.79655558]
[1745362582885,0.00684174,92748.0,92738.0,0.79655558]
[1745362583335,0.004146,92748.0,92738.0,0.79655558]
[1745362584223,0.00269574,92747.0,92738.0,0.79655558]
[1745362584427,0.00269574,92747.0,92738.0,0.52137462]
[1745362585490,0.00369574,92747.0,92738.0,0.52137462]
[1745362585824,0.00569574,92747.0,92738.0,0.52137462]
[1745362588698,0.00569574,92747.0,92738.0,0.02137462]
[1745362589076,0.00569574,92747.0,92730.0,0.27518096]
[1745362589259,0.00569574,92747.0,92737.0,0.27518096]
[1745362589812,0.00469574,92747.0,92737.0,0.27518096]
[1745362590182,0.00569574,92747.0,92737.0,0.27518096]
[1745362590546,0.00469574,92747.0,92737.0,0.27518096]
[1745362590746,0.00569574,92747.0,92737.0,0.27518096]
[1745362590991,0.003,92747.0,92737.0,0.27518096]
[1745362591206,0.001,92747.0,92737.0,0.29505364]
[1745362591545,0.003,92747.0,92737.0,0.29505364]
[1745362591773,0.001,92747.0,92737.0,0.29505364]
[1745362592490,0.002,92747.0,92737.0,0.29505364]
[1745362592689,0.001146,92748.0,92737.0,0.29505364]
[1745362592939,0.001,92747.0,92737.0,0.29505364]
[1745362593312,0.001146,92748.0,92737.0,0.29505364]
[1745362593853,0.001,92747.0,92737.0,0.29505364]
[1745362594254,0.001146,92748.0,92737.0,0.29505364]
[1745362594494,0.00484156,92748.0,92737.0,0.29505364]
[1745362595852,0.00384156,92748.0,92737.0,0.29505364]
[1745362596038,0.001,92747.0,92737.0,0.29505364]
[1745362596557,0.001146,92748.0,92737.0,0.29505364]
[1745362596788,0.00484156,92748.0,92737.0,0.29505364]
[1745362597337,0.00384156,92748.0,92737.0,0.29505364]
[1745362597545,0.001,92747.0,92737.0,0.29505364]
[1745362598642,0.001146,92748.0,92737.0,0.29505364]
[1745362598867,0.00384156,92748.0,92737.0,0.29505364]
[1745362599061,0.00484156,92748.0,92737.0,0.29505364]
[1745362599535,0.002146,92748.0,92737.0,0.29505364]
[1745362603331,0.002146,92748.0,92737.0,0.46758394]
[1745362605456,0.002146,92748.0,92737.0,0.29505364]
[1745362605655,0.002146,92748.0,92737.0,0.4675845]
[1745362606121,0.002146,92748.0,92737.0,0.19240354]
[1745362606362,0.002146,92748.0,92738.0,0.27518096]
[1745362607292,0.001146,92748.0,92738.0,0.27518096]
[1745362608440,0.002146,92748.0,92738.0,0.27518096]
[1745362608852,0.002146,92748.0,92737.0,0.01987268]
[1745362609051,0.00484156,92748.0,92730.0,0.27522732]
[1745362609454,0.00484156,92748.0,92730.0,0.28601131]
[1745362609627,0.00484156,92748.0,92738.0,0.27518096]
[1745362609836,0.00384156,92748.0,92738.0,0.27518096]
[1745362610217,0.00484156,92748.0,92738.0,0.27518096]
[1745362611431,0.00384156,92748.0,92738.0,0.27518096]
[1745362611629,0.00484156,92748.0,92730.0,0.29485966]
[1745362612058,0.0471,92746.0,92730.0,0.0196787]
[1745362612262,0.0944,92744.0,92730.0,0.0196787]
[1745362612480,0.27518096,92740.0,92730.0,4.636e-05]
[1745362612683,0.11099944,92739.0,92730.0,4.636e-05]
[1745362612839,0.0944,92737.0,92730.0,4.636e-05]
[1745362613043,0.1109995,92736.0,92730.0,0.00104636]
[1745362613267,0.0944,92733.0,92730.0,0.00104636]
[1745362613582,0.0944,92731.0,92730.0,0.00104636]
[1745362613739,0.20270305,92731.0,92730.0,0.00204636]
[1745362613944,0.20270305,92731.0,92730.0,0.00104636]
[1745362614912,0.20570305,92731.0,92730.0,4.636e-05]
[1745362615878,0.20870305,92731.0,92730.0,4.636e-05]
[1745362616687,0.20970305,92731.0,92730.0,4.636e-05]
[1745362617682,0.20670305,92731.0,92730.0,4.636e-05]
[1745362617919,0.20970305,92731.0,92730.0,4.636e-05]
[1745362618124,0.0909,92730.0,92717.0,0.01942714]
[1745362618362,0.11099986,92729.0,92712.0,0.0008492]
[1745362618879,0.0909,92728.0,92712.0,0.0008492]
[1745362619037,0.0909,92726.0,92712.0,0.0008492]
[1745362619218,0.0909,92723.0,92712.0,0.0008492]
[1745362619421,0.0909,92721.0,92712.0,0.0008492]
[1745362619626,0.0457,92719.0,92712.0,0.0008492]
[1745362619826,0.0457,92717.0,92712.0,0.0008492]
[1745362620022,0.11099988,92716.0,92712.0,0.02003963]
[1745362621458,0.11095111,92716.0,92712.0,0.02003963]
[1745362622423,0.11395111,92716.0,92712.0,0.02003963]
[1745362623076,0.0457,92715.0,92712.0,0.0008492]
[1745362623274,0.0457,92713.0,92712.0,0.0008492]
[1745362623626,0.20190024,92713.0,92712.0,0.0008492]
[1745362624438,0.20290024,92713.0,92712.0,0.0008492]
[1745362624657,0.20190024,92713.0,92712.0,0.0008492]
[1745362625067,0.20390024,92713.0,92712.0,0.0008492]
[1745362625274,0.20190024,92713.0,92712.0,0.0008492]
[1745362625606,0.20790024,92713.0,92712.0,0.0008492]
[1745362625796,0.20520305,92713.0,92712.0,0.0008492]
[1745362626024,0.20290029,92713.0,92712.0,0.0008492]
[1745362626206,0.20290029,92713.0,92692.0,0.0008496]
[1745362626207,0.16120029,92713.0,92683.0,0.08596466]
[1745362626447,0.10830305,92712.0,92690.0,0.27518096]
[1745362626662,0.00269721,92711.0,92683.0,0.08596466]
[1745362626858,0.10830305,92710.0,92683.0,0.08596466]
[1745362627071,0.00269726,92709.0,92683.0,0.10529679]
[1745362627273,0.10830305,92708.0,92683.0,0.10529679]
[1745362627438,0.00269726,92707.0,92690.0,0.002]
[1745362627642,0.15620305,92706.0,92690.0,0.002]
[1745362627823,0.00269726,92705.0,92683.0,0.10529679]
[1745362628022,0.10830305,92704.0,92683.0,0.10829679]
[1745362628243,0.00269726,92703.0,92683.0,0.10829679]
[1745362628444,0.10830305,92702.0,92683.0,0.10529679]
[1745362628782,0.00269726,92701.0,92690.0,0.002]
[1745362628922,0.10830305,92700.0,92690.0,0.004]
[1745362629117,0.0458,92698.0,92690.0,0.004]
[1745362629375,0.00269726,92697.0,92690.0,0.002]
[1745362629917,0.00269726,92697.0,92683.0,0.02533213]
[1745362630118,0.00269726,92697.0,92683.0,0.02933213]
[1745362630451,0.10830305,92696.0,92683.0,0.02933213]
[1745362630658,0.00269733,92695.0,92683.0,0.02933213]
[1745362630858,0.15620305,92694.0,92683.0,0.02533213]
[1745362631060,0.00269742,92693.0,92683.0,0.02533213]
[1745362631364,0.00269742,92693.0,92683.0,0.01933213]
[1745362631365,0.0458,92692.0,92683.0,0.01933213]
[1745362631561,0.00269742,92691.0,92674.0,0.0008498]
[1745362631769,0.00269742,92691.0,92683.0,0.002]
[1745362632302,0.10830305,92690.0,92683.0,0.002]
[1745362632450,0.0026976,92689.0,92683.0,0.02294622]
[1745362632644,0.10830305,92688.0,92683.0,0.004]
[1745362632844,0.0026976,92687.0,92674.0,0.0008498]
[1745362633093,0.11100065,92687.0,92674.0,0.0008498]
[1745362633305,0.11100065,92687.0,92683.0,0.004]
[1745362633533,0.15430305,92686.0,92683.0,0.002]
[1745362633787,0.00269768,92685.0,92683.0,0.02330535]
[1745362633954,0.10830305,92684.0,92683.0,0.02130535]
[1745362634574,0.10830305,92684.0,92683.0,0.01930535]
[1745362634933,0.10830305,92684.0,92683.0,0.001]
[1745362635433,0.10830305,92684.0,92683.0,0.02111317]
[1745362636040,0.10830305,92684.0,92683.0,0.02011317]
[1745362636449,0.10830305,92684.0,92670.0,0.08466135]
[1745362636649,0.00269767,92683.0,92670.0,0.08466135]
[1745362637635,0.00269767,92683.0,92670.0,0.1086318]
[1745362638051,0.00269767,92683.0,92670.0,0.02797045]
[1745362638246,0.00269767,92683.0,92670.0,0.29815141]
[1745362638469,0.0479,92694.0,92679.0,0.01078993]
[1745362638726,7.992e-05,92698.0,92685.0,0.01078923]
[1745362638958,7.992e-05,92698.0,92684.0,0.2859703]
[1745362641384,7.992e-05,92698.0,92684.0,0.27518096]
[1745362642139,7.992e-05,92698.0,92684.0,0.27618096]
[1745362643553,7.992e-05,92698.0,92684.0,0.001]
[1745362643554,0.046,92697.0,92684.0,0.001]
[1745362643724,0.15760029,92696.0,92684.0,0.001]
[1745362644139,0.046,92695.0,92684.0,0.001]
[1745362644333,0.1110005,92694.0,92670.0,0.01897045]
[1745362644532,0.1110005,92694.0,92667.0,0.0008484]
[1745362644738,0.1110005,92694.0,92684.0,0.001]
[1745362645141,0.1110005,92694.0,92670.0,0.27518096]
[1745362645574,0.046,92693.0,92670.0,0.005]
[1745362645779,0.046,92690.0,92670.0,0.02245106]
[1745362645949,0.0466,92691.0,92670.0,0.005]
[1745362645950,0.046,92688.0,92670.0,0.005]
[1745362646164,0.11100093,92687.0,92670.0,0.009]
[1745362646491,0.11100093,92687.0,92670.0,0.02267924]
[1745362646872,0.11100093,92687.0,92670.0,0.02667924]
[1745362647225,0.11100093,92687.0,92670.0,0.01767924]
[1745362647397,0.11100093,92687.0,92670.0,0.02267924]
[1745362647576,0.11100093,92687.0,92670.0,0.005]
[1745362647796,0.0455,92686.0,92667.0,0.0008484]
[1745362647996,0.11100093,92685.0,92670.0,0.001]
[1745362648369,0.11100093,92685.0,92670.0,0.002]
[1745362648786,0.11100093,92685.0,92670.0,0.001]
[1745362648996,0.11100093,92685.0,92669.0,0.02063357]
[1745362649847,0.11100093,92685.0,92669.0,0.02163357]
[1745362650053,0.11100093,92685.0,92670.0,0.27518096]
[1745362650227,0.0455,92686.0,92676.0,0.01079028]
[1745362650431,0.0466,92691.0,92676.0,0.27518096]
[1745362650997,0.00269733,92690.0,92676.0,0.27518096]
[1745362651414,0.00269733,92690.0,92676.0,0.27618096]
[1745362651866,0.00269733,92690.0,92676.0,0.27518096]
[1745362652041,0.00269733,92690.0,92676.0,0.27618096]
[1745362652299,0.00269733,92690.0,92676.0,0.27718096]
[1745362652525,0.00269733,92690.0,92676.0,0.27618096]
[1745362652842,0.00269733,92690.0,92676.0,0.27718096]
[1745362654949,0.00269733,92690.0,92676.0,0.002]
[1745362655579,0.0466,92691.0,92676.0,0.002]
[1745362656453,0.00269733,92690.0,92677.0,0.17264261]
[1745362656662,7.992e-05,92698.0,92680.0,0.27518096]
[1745362656838,7.992e-05,92698.0,92688.0,0.27518096]
[1745362657020,0.00277708,92698.0,92680.0,0.27518096]
[1745362658260,7.992e-05,92698.0,92680.0,0.27518096]
[1745362658423,7.992e-05,92698.0,92680.0,0.27818096]
[1745362659076,7.992e-05,92698.0,92680.0,0.28118096]
[1745362659623,7.992e-05,92698.0,92690.0,0.01078865]
[1745362659852,7.992e-05,92698.0,92695.0,0.01078806]
[1745362660265,7.992e-05,92698.0,92696.0,1.92099423]
[1745362660461,7.992e-05,92698.0,92697.0,0.690079]
[1745362660682,7.992e-05,92698.0,92697.0,0.179456]
[1745362661647,7.992e-05,92698.0,92690.0,0.01078865]
[1745362661977,7.992e-05,92698.0,92691.0,0.01078853]
[1745362662179,7.992e-05,92698.0,92690.0,0.01078865]
[1745362662429,7.992e-05,92698.0,92697.0,0.004]
[1745362662828,7.992e-05,92698.0,92697.0,0.009]
[1745362663206,7.992e-05,92698.0,92697.0,0.005]
[1745362663401,7.992e-05,92698.0,92691.0,0.01078853]
[1745362663625,7.992e-05,92698.0,92697.0,0.002]
[1745362664242,7.992e-05,92698.0,92691.0,0.01078853]
[1745362664638,7.992e-05,92698.0,92691.0,0.01478853]
[1745362665018,7.992e-05,92698.0,92697.0,0.002]
[1745362665263,7.992e-05,92698.0,92691.0,0.004]
[1745362665562,7.992e-05,92698.0,92691.0,0.008]
[1745362665719,7.992e-05,92698.0,92691.0,0.01878853]
[1745362665934,7.992e-05,92698.0,92691.0,0.004]
[1745362666134,7.992e-05,92698.0,92697.0,0.003]
[1745362666703,7.992e-05,92698.0,92697.0,0.002]
[1745362666904,0.04557992,92698.0,92697.0,0.002]
[1745362667703,0.04557992,92698.0,92697.0,0.004]
[1745362667885,0.04557992,92698.0,92697.0,0.002]
[1745362668056,0.04557992,92698.0,92697.0,0.004]
[1745362668564,0.04557992,92698.0,92697.0,0.002]
[1745362668774,0.04757992,92698.0,92697.0,0.002]
[1745362669033,0.04757992,92698.0,92682.0,0.12072]
[1745362669168,0.00269704,92697.0,92682.0,0.12072]
[1745362670217,0.04857992,92698.0,92682.0,0.12072]
[1745362670419,0.04757992,92698.0,92682.0,0.12072]
[1745362670752,0.04757992,92698.0,92683.0,0.20526446]
[1745362670907,0.04557992,92698.0,92688.0,0.27518096]
[1745362671727,0.00269704,92697.0,92682.0,0.12372]
[1745362672009,0.00269704,92697.0,92682.0,0.12172]
[1745362672144,0.00269704,92697.0,92682.0,0.12072]
[1745362672354,0.00269704,92697.0,92682.0,0.12372]
[1745362672934,0.00269704,92697.0,92682.0,0.12272]
[1745362673292,0.00269704,92697.0,92682.0,0.12472]
[1745362673632,0.04557992,92698.0,92682.0,0.12472]
[1745362674336,0.00269704,92697.0,92682.0,0.12472]
[1745362674739,0.04557992,92698.0,92682.0,0.12272]
[1745362674950,0.04557992,92698.0,92682.0,0.12172]
[1745362675362,0.04557992,92698.0,92682.0,0.12272]
[1745362676230,0.04557992,92698.0,92683.0,0.01078946]
[1745362676433,0.04557992,92698.0,92682.0,0.13450958]
[1745362676726,0.04557992,92698.0,92682.0,0.12372]
[1745362677251,0.04557992,92698.0,92682.0,0.29435298]
[1745362677488,0.04557992,92698.0,92682.0,0.30414256]
[1745362677666,0.04557992,92698.0,92683.0,0.01078946]
[1745362678073,0.04557992,92698.0,92685.0,0.01078923]
[1745362678268,0.04557992,92698.0,92688.0,0.27518096]
[1745362678506,7.992e-05,92698.0,92688.0,0.27518096]
[1745362678721,7.992e-05,92698.0,92688.0,0.28596984]
[1745362679160,7.992e-05,92698.0,92688.0,0.27518096]
[1745362679367,7.992e-05,92698.0,92689.0,0.01078876]
[1745362679755,7.992e-05,92698.0,92690.0,0.238134]
[1745362679946,7.992e-05,92698.0,92689.0,0.335411]
[1745362680172,7.992e-05,92698.0,92689.0,0.276111]
[1745362680380,7.992e-05,92698.0,92685.0,0.18441539]
[1745362680553,7.992e-05,92698.0,92688.0,0.27518096]
[1745362681511,7.992e-05,92698.0,92688.0,0.28596984]
[1745362681740,7.992e-05,92698.0,92688.0,0.27518096]
[1745362683054,7.992e-05,92698.0,92682.0,0.01078958]
[1745362683301,7.992e-05,92698.0,92681.0,0.12024]
[1745362683478,0.0453,92697.0,92681.0,0.12024]
[1745362683708,0.00269704,92696.0,92681.0,0.12024]
[1745362683884,0.0453,92695.0,92681.0,0.12024]
[1745362684060,0.00269724,92694.0,92681.0,0.12024]
[1745362684626,0.00269724,92694.0,92681.0,0.12224]
[1745362684903,0.00269724,92694.0,92682.0,0.002]
[1745362685329,0.00269724,92694.0,92681.0,0.12224]
[1745362685475,0.00269724,92694.0,92681.0,0.12024]
[1745362686096,0.00269724,92694.0,92681.0,0.12224]
[1745362686719,0.00269724,92694.0,92681.0,0.12424]
[1745362687732,0.00269724,92694.0,92676.0,0.10655484]
[1745362688089,0.00269724,92694.0,92680.0,0.27518096]
[1745362688289,0.0453,92695.0,92680.0,0.44781781]
[1745362688690,0.0453,92695.0,92686.0,0.01078911]
[1745362688893,0.0453,92695.0,92685.0,0.17262598]
[1745362689054,0.0453,92695.0,92684.0,0.01078934]
[1745362689251,0.0453,92695.0,92683.0,0.01078946]
[1745362689459,0.0453,92695.0,92684.0,0.82317692]
[1745362689664,7.992e-05,92698.0,92692.0,0.17261311]
[1745362689867,7.992e-05,92698.0,92692.0,0.18340152]
[1745362690082,7.992e-05,92698.0,92693.0,0.0107883]
[1745362690281,7.992e-05,92698.0,92692.0,0.18340152]
[1745362690488,7.992e-05,92698.0,92692.0,0.17261311]
[1745362690687,7.992e-05,92698.0,92690.0,0.1834053]
[1745362690891,7.992e-05,92698.0,92688.0,0.27518096]
[1745362691110,0.00107992,92698.0,92689.0,0.1141]
[1745362691762,0.00307992,92698.0,92689.0,0.11553]
[1745362691964,0.00307992,92698.0,92688.0,0.27518096]
[1745362692185,0.00307992,92698.0,92680.0,0.44781635]
[1745362692403,0.0467,92697.0,92682.0,0.01078958]
[1745362692654,0.0467,92697.0,92681.0,0.01078969]
[1745362692858,0.0467,92697.0,92681.0,0.17263331]
[1745362693367,0.0467,92697.0,92682.0,0.01078958]
[1745362693508,0.0467,92697.0,92688.0,0.001]
[1745362693710,0.0467,92697.0,92682.0,0.01078958]
[1745362694703,0.0467,92697.0,92688.0,0.001]
[1745362695839,0.0467,92697.0,92682.0,0.17463176]
[1745362696208,0.0467,92697.0,92682.0,0.17663176]
[1745362696403,0.0467,92697.0,92687.0,0.27518096]
[1745362696740,0.0467,92697.0,92688.0,0.001]
[1745362696945,0.0467,92697.0,92688.0,0.002]
[1745362697150,0.0467,92697.0,92688.0,0.001]
[1745362697453,0.0467,92697.0,92687.0,0.27518096]
[1745362697648,0.0467,92697.0,92687.0,0.001]
[1745362697852,0.0458,92696.0,92688.0,0.001]
[1745362698456,0.0458,92696.0,92688.0,0.002]
[1745362699312,0.0458,92696.0,92688.0,0.001]
[1745362699609,0.0458,92696.0,92688.0,0.002]
[1745362699908,0.0458,92696.0,92688.0,0.001]
[1745362700130,0.0458,92696.0,92688.0,0.002]
[1745362707832,0.0458,92696.0,92690.0,0.17261806]
[1745362708048,7.992e-05,92698.0,92694.0,0.01078818]
[1745362708259,7.992e-05,92698.0,92695.0,0.451832]
[1745362708470,7.992e-05,92698.0,92696.0,0.19706]
[1745362708682,7.992e-05,92698.0,92690.0,0.17261754]
[1745362708894,7.992e-05,92698.0,92693.0,0.17261275]
[1745362710382,7.992e-05,92698.0,92694.0,0.17260947]
[1745362710583,0.00107992,92698.0,92695.0,0.17260729]
[1745362711326,0.00107992,92698.0,92696.0,0.17260537]
[1745362711959,7.992e-05,92698.0,92696.0,0.17260537]
[1745362712876,0.00107992,92698.0,92696.0,0.17260537]
[1745362713526,0.00107992,92698.0,92695.0,0.17260729]
[1745362714872,7.992e-05,92698.0,92695.0,0.17260729]
[1745362717631,7.992e-05,92698.0,92693.0,0.17261201]
[1745362717986,7.992e-05,92698.0,92695.0,0.17260772]
[1745362720780,7.992e-05,92698.0,92697.0,0.17260537]
[1745362722127,0.00207992,92698.0,92697.0,0.17260537]
[1745362722503,0.00207992,92698.0,92697.0,0.48874337]
[1745362722704,0.00207992,92698.0,92697.0,0.46997837]
[1745362722902,0.00207992,92698.0,92697.0,0.32252337]
[1745362723496,0.00207992,92698.0,92697.0,0.139438]
[1745362723704,0.00207992,92698.0,92695.0,0.17260772]
[1745362724534,0.00107992,92698.0,92695.0,0.17260772]
[1745362724970,7.992e-05,92698.0,92695.0,0.17260772]
[1745362726197,7.992e-05,92698.0,92693.0,0.17261201]
[1745362726494,7.992e-05,92698.0,92695.0,0.17260909]
[1745362726904,0.00048032,92729.0,92695.0,0.17260909]
[1745362727142,0.08596466,92723.0,92700.0,0.27518096]
[1745362727347,0.11099965,92722.0,92700.0,0.27518096]
[1745362728850,0.11299965,92722.0,92700.0,0.27518096]
[1745362730292,0.0911,92721.0,92700.0,0.27518096]
[1745362730527,0.0026966,92720.0,92700.0,0.27518096]
[1745362730773,0.0911,92721.0,92711.0,0.1725793]
[1745362730988,0.0911,92721.0,92710.0,0.27518096]
[1745362731657,0.0931,92721.0,92710.0,0.27518096]
[1745362731879,0.001,92720.0,92710.0,0.27518096]
[1745362732111,0.0911,92721.0,92710.0,0.27518096]
[1745362732341,0.0911,92721.0,92710.0,0.27618096]
[1745362733218,0.04789635,92720.0,92710.0,0.001]
[1745362733457,0.04789635,92720.0,92710.0,0.002]
[1745362733665,0.04789635,92720.0,92710.0,0.001]
[1745362734106,0.04789635,92720.0,92700.0,0.44778009]
[1745362734571,0.04889635,92720.0,92710.0,0.001]
[1745362735207,0.04789635,92720.0,92700.0,0.44778009]
[1745362735419,0.04889635,92720.0,92700.0,0.44778009]
[1745362736509,0.04889635,92720.0,92700.0,0.44978009]
[1745362736694,0.04789635,92720.0,92700.0,0.44978009]
[1745362736918,0.04789635,92720.0,92700.0,0.45178009]
[1745362738064,0.04789635,92720.0,92702.0,0.17259584]
[1745362739692,0.04789635,92720.0,92702.0,0.17359584]
[1745362739928,0.04789635,92720.0,92702.0,0.17459584]
[1745362741242,0.04789635,92720.0,92702.0,0.002]
[1745362741444,0.04789635,92720.0,92702.0,0.17459584]
[1745362742021,0.04789635,92720.0,92702.0,0.002]
[1745362742234,0.0965,92718.0,92702.0,0.002]
[1745362742443,0.0965,92716.0,92702.0,0.002]
[1745362742647,0.08596466,92719.0,92702.0,0.002]